bitfinex/quotes_ETHUSD_20260219
["timestamp","ask_amount","ask_price","bid_price","bid_amount"]
[1771533098751,1.42851366,1943.4,1943.0,2.50814665]
[1771533101158,1.28632454,1943.6,1943.1,2.50814665]
[1771533101338,1.28626422,1943.7,1943.1,2.50814665]
[1771533102162,0.13822835,1943.7,1942.7,0.928]
[1771533102363,1.28614643,1943.8,1942.4,0.18785624]
[1771533102364,5.34980026,1942.8,1942.4,2.50914665]
[1771533102536,5.48802861,1942.8,1942.4,0.001]
[1771533102860,3.99934199,1942.7,1942.4,0.001]
[1771533103032,1.28686879,1942.7,1942.4,0.001]
[1771533103230,5.34980026,1942.6,1942.3,0.001]
[1771533103428,5.34980026,1942.6,1942.2,2.50914665]
[1771533103429,0.13724042,1942.5,1942.1,0.001]
[1771533103632,1.28686879,1942.7,1942.2,2.50814665]
[1771533103831,10.49568744,1943.4,1943.0,0.001]
[1771533103832,1.28660388,1943.1,1943.0,0.001]
[1771533104034,4.04229725,1943.1,1942.6,2.50814665]
[1771533104356,1.28660388,1943.1,1942.6,2.50814665]
[1771533105249,1.28660388,1943.1,1942.9,0.001]
[1771533105828,1.42203942,1943.1,1942.6,2.50814665]
[1771533106451,0.1344263,1942.9,1942.3,2.50814665]
[1771533106960,1.28680255,1942.8,1942.3,2.50814665]
[1771533107535,6.63660281,1942.8,1942.3,2.50814665]
[1771533107759,6.77007969,1942.8,1942.3,2.50814665]
[1771533107977,1.42027943,1942.8,1942.3,2.50814665]
[1771533108435,1.28680255,1942.8,1942.3,2.50814665]
[1771533109036,1.28667009,1943.0,1942.3,2.50814665]
[1771533109236,1.41813527,1943.0,1942.3,2.50814665]
[1771533110046,5.27647655,1942.9,1942.2,2.40154874]
[1771533110251,2.52115499,1942.9,1942.2,2.40154874]
[1771533111457,3.80795754,1942.8,1942.2,2.40154874]
[1771533113877,1.28680255,1942.8,1942.2,2.40154874]
[1771533114478,2.52115499,1943.3,1942.2,2.40154874]
[1771533114653,1.28640526,1943.4,1942.2,2.40154874]
[1771533115060,2.52115499,1943.3,1942.2,2.40154874]
[1771533115982,1.28653766,1943.2,1942.4,2.40154874]
[1771533116874,2.52115499,1943.1,1942.4,2.40154874]
[1771533117278,0.0011,1942.9,1942.4,2.40154874]
[1771533117883,1.28783632,1942.9,1942.4,2.40154874]
[1771533118095,3.80899131,1942.9,1942.4,2.40154874]
[1771533118274,2.52115499,1942.8,1942.3,0.001]
[1771533118476,2.52115499,1942.8,1942.3,2.40254874]
[1771533118860,0.0011,1942.9,1942.4,2.40154874]
[1771533119900,0.0011,1942.9,1942.5,2.40154874]
[1771533120068,0.0011,1942.9,1942.3,5.14950718]
[1771533120069,2.52225499,1942.9,1942.3,3.68963277]
[1771533120804,2.52225499,1942.9,1942.3,2.40254874]
[1771533121484,0.0011,1942.9,1942.4,2.54461846]
[1771533123169,2.54791771,1942.9,1942.4,2.54461846]
[1771533123370,2.54791771,1942.9,1942.5,2.54461846]
[1771533123371,0.0011,1942.9,1942.5,2.54461846]
[1771533123992,2.54791771,1942.9,1942.3,2.54561846]
[1771533124201,1.28680255,1942.8,1942.3,2.54561846]
[1771533124404,1.28680255,1942.8,1942.3,3.83274782]
[1771533125275,1.28680255,1942.8,1942.3,2.54561846]
[1771533126183,2.54681771,1942.8,1942.3,0.001]
[1771533126583,2.54681771,1942.8,1942.3,2.54561846]
[1771533127115,0.0011,1942.9,1942.4,2.38925543]
[1771533127681,0.0011,1943.2,1942.4,2.38925543]
[1771533128214,0.0011,1943.2,1942.6,2.38925543]
[1771533129816,0.0011,1943.1,1942.6,2.38925543]
[1771533131217,0.0011,1943.1,1942.7,3.67612422]
[1771533131915,0.0011,1943.1,1942.8,2.38925543]
[1771533133006,0.0011,1943.1,1942.9,1.28673632]
[1771533133201,0.0011,1943.1,1942.9,3.67599175]
[1771533133403,0.0011,1943.1,1942.9,2.38925543]
[1771533134519,0.0011,1943.4,1942.9,2.38925543]
[1771533135220,0.0011,1943.4,1943.0,1.28667009]
[1771533135415,0.0011,1943.4,1943.1,2.38925543]
[1771533137419,0.0011,1943.4,1943.1,3.67584674]
[1771533138646,0.0011,1943.4,1943.2,2.38925543]
[1771533138794,0.0011,1943.6,1943.2,2.38925543]
[1771533139300,0.0011,1943.6,1943.4,2.38925543]
[1771533141726,0.0011,1943.5,1943.4,3.67566069]
[1771533142191,0.0011,1943.5,1943.2,5.14605998]
[1771533142401,0.0011,1943.5,1943.2,2.38925543]
[1771533143222,0.0011,1943.6,1942.9,2.38925543]
[1771533144690,0.0011,1943.6,1943.1,2.38925543]
[1771533144894,2.46482803,1943.6,1943.1,2.38925543]
[1771533145108,0.0011,1943.6,1943.1,2.38925543]
[1771533145602,2.46482803,1943.6,1943.0,3.67592552]
[1771533145823,2.46482803,1943.6,1942.9,1.286693]
[1771533146924,3.7500671,1943.5,1942.9,3.67594843]
[1771533148702,3.7500671,1943.5,1943.0,2.38925543]
[1771533149841,3.7500671,1943.5,1942.6,3.31625543]
[1771533149842,2.46372803,1943.4,1942.6,3.31625543]
[1771533150022,2.46372803,1943.2,1942.6,4.60318379]
[1771533150343,2.46372803,1943.4,1942.7,2.38925543]
[1771533150631,2.80315813,1943.3,1942.7,2.38925543]
[1771533151401,5.26688616,1943.3,1942.7,2.38925543]
[1771533151598,2.80386973,1943.2,1942.7,2.38925543]
[1771533151835,6.55415886,1943.2,1942.7,3.67610332]
[1771533152131,2.46372803,1943.1,1942.6,0.927]
[1771533152338,2.46372803,1942.9,1942.3,0.001]
[1771533152509,2.46372803,1942.7,1942.3,0.001]
[1771533153832,3.75065608,1942.7,1942.3,0.001]
[1771533154035,2.46372803,1942.6,1942.3,0.001]
[1771533154400,2.46372803,1942.6,1942.5,0.001]
[1771533154818,2.46372803,1942.6,1942.3,0.001]
[1771533155048,1.28692805,1942.7,1942.1,0.001]
[1771533155049,2.46372803,1942.4,1942.1,0.001]
[1771533155417,1.28692805,1942.7,1942.1,0.001]
[1771533155418,2.46372803,1942.6,1942.1,0.001]
[1771533155854,2.80110995,1942.5,1942.1,0.001]
[1771533156038,3.75058517,1942.8,1942.1,2.39025543]
[1771533156230,1.2867905,1942.9,1942.1,2.39025543]
[1771533156628,1.28663685,1943.1,1942.1,2.39025543]
[1771533156831,1.28655495,1943.2,1942.1,2.39025543]
[1771533157032,2.79903031,1943.1,1942.1,2.39025543]
[1771533157233,3.7502485,1943.3,1942.1,2.39025543]
[1771533157430,2.79881498,1943.2,1942.1,2.39025543]
[1771533158056,2.79881498,1943.2,1942.3,2.54591353]
[1771533158230,2.46372803,1943.3,1942.3,2.54591353]
[1771533160243,2.46372803,1943.3,1942.5,2.54591353]
[1771533160455,3.72051919,1943.5,1942.5,2.54591353]
[1771533161161,0.0011,1943.5,1942.5,2.54591353]
[1771533161460,1.28743965,1943.5,1942.5,2.54591353]
[1771533161834,0.0011,1943.5,1942.5,2.54591353]
[1771533162157,1.28744808,1943.5,1942.5,2.54591353]
[1771533162457,2.43417211,1943.5,1942.7,2.54591353]
[1771533163858,2.43417211,1943.5,1942.5,2.21399021]
[1771533164029,2.43307211,1943.3,1942.5,2.21399405]
[1771533164232,2.43307211,1943.3,1942.5,4.75990758]
[1771533164660,2.43307211,1943.1,1942.5,4.75990758]
[1771533166556,2.43307211,1943.1,1942.5,0.927]
[1771533166557,2.43307211,1942.9,1942.5,0.927]
[1771533171762,3.71984477,1942.9,1942.5,0.927]
[1771533172463,3.71984477,1942.9,1942.3,3.83399483]
[1771533172964,5.1467639,1943.0,1942.4,2.54591353]
[1771533172965,1.28671621,1943.0,1942.4,2.54591353]
[1771533173165,3.71978832,1943.0,1942.4,2.54591353]
[1771533173972,2.43307211,1943.2,1942.6,2.54591353]
[1771533174150,3.72064203,1943.4,1942.6,2.54591353]
[1771533174345,2.80267503,1943.3,1942.6,2.54591353]
[1771533174767,3.72064203,1943.4,1942.6,2.54591353]
[1771533174984,1.28751451,1943.4,1942.6,2.54591353]
[1771533175276,0.0011,1943.4,1942.6,2.54591353]
[1771533175638,4.09109538,1943.4,1942.6,2.54591353]
[1771533175840,1.28750589,1943.4,1942.6,2.54591353]
[1771533176167,1.28750589,1943.4,1942.8,2.54591353]
[1771533176168,0.0011,1943.4,1942.8,2.54591353]
[1771533176353,2.80495101,1943.4,1942.8,2.54591353]
[1771533177474,5.23802312,1943.4,1942.8,2.54591353]
[1771533177676,2.43307211,1943.2,1942.5,2.54591353]
[1771533178372,3.71967379,1943.2,1942.6,3.83284856]
[1771533180944,5.14718419,1943.3,1942.7,2.54591353]
[1771533180945,0.0011,1943.3,1942.7,2.54591353]
[1771533181669,2.80622492,1943.3,1942.7,2.54591353]
[1771533181859,0.0011,1943.3,1942.7,2.54591353]
[1771533183475,0.0011,1943.3,1942.9,2.44728093]
[1771533183692,0.0011,1943.5,1942.9,2.44728093]
[1771533185458,0.0011,1943.5,1943.1,2.44728093]
[1771533185677,0.0011,1943.7,1943.1,2.44728093]
[1771533185852,0.00153886,1944.0,1943.2,2.44728093]
[1771533186190,2.80165703,1943.9,1943.2,2.44728093]
[1771533186672,3.85124933,1944.0,1943.2,2.44728093]
[1771533186874,2.56370196,1943.9,1943.2,2.44728093]
[1771533187780,3.8498425,1943.8,1943.2,3.73378641]
[1771533188181,3.8498425,1943.8,1943.2,2.44728093]
[1771533188680,3.8498425,1943.8,1943.2,3.73381118]
[1771533189282,1.28757357,1944.0,1943.3,2.59753195]
[1771533189662,3.85127553,1944.0,1943.3,2.59753195]
[1771533190771,3.85127553,1944.0,1943.4,2.59753195]
[1771533190977,0.0011,1943.8,1943.4,2.59753195]
[1771533193164,0.0011,1943.8,1943.4,3.88391403]
[1771533193359,0.0011,1943.8,1943.5,2.59753195]
[1771533193695,1.28586352,1944.3,1943.5,2.59753195]
[1771533194088,2.21279213,1944.4,1943.5,2.59753195]
[1771533194398,4.77649409,1944.4,1943.5,2.59753195]
[1771533195075,3.49070196,1944.4,1943.5,2.59753195]
[1771533195285,0.927,1944.4,1943.7,2.59753195]
[1771533195909,3.84935069,1944.6,1943.7,2.59753195]
[1771533196694,2.56370196,1944.5,1943.7,2.59753195]
[1771533197373,1.28574367,1944.4,1943.9,2.59753195]
[1771533198275,1.28574367,1944.4,1943.3,5.1458566]
[1771533198276,2.56370196,1944.3,1943.0,11.55925007]
[1771533198475,2.56370196,1944.3,1943.2,4.81102214]
[1771533198989,2.56370196,1944.3,1943.3,2.59753195]
[1771533199372,2.56370196,1944.1,1943.4,1.28640526]
[1771533199766,2.56370196,1944.1,1943.3,2.59753195]
[1771533199969,2.56370196,1944.1,1943.3,3.8839477]
[1771533200784,2.56370196,1944.1,1943.4,2.59753195]
[1771533200988,1.28587593,1944.2,1943.4,2.59753195]
[1771533201576,1.28587593,1944.2,1943.6,2.59753195]
[1771533201899,1.28585404,1944.3,1943.6,2.59753195]
[1771533202394,1.28579797,1944.4,1943.6,2.59753195]
[1771533203697,0.0011,1944.0,1943.7,1.28620671]
[1771533203999,0.0011,1944.0,1943.7,3.88373866]
[1771533204693,0.0011,1944.3,1943.7,3.88373866]
[1771533204694,0.0011,1944.3,1943.8,2.59753195]
[1771533206095,0.0011,1944.3,1944.0,2.59753195]
[1771533209107,0.0011,1944.3,1943.8,3.88362013]
[1771533209616,0.0011,1944.3,1943.9,2.59753195]
[1771533210492,0.0011,1944.3,1944.0,3.88354018]
[1771533211205,0.0011,1944.3,1944.0,2.59753195]
[1771533211610,2.56480196,1944.3,1943.8,3.88366983]
[1771533212705,2.56370196,1944.1,1943.5,0.927]
[1771533213912,2.56370196,1944.1,1943.5,2.21332304]
[1771533214101,2.56370196,1944.1,1943.6,2.59753195]
[1771533214683,2.56370196,1944.2,1943.6,2.59753195]
[1771533214905,2.56370196,1944.2,1943.6,3.88380364]
[1771533216714,0.0011,1944.1,1943.6,3.88380364]
[1771533217212,0.0011,1944.1,1943.7,2.4910909]
[1771533220513,0.0011,1944.1,1943.7,3.77725]
[1771533220695,0.0011,1944.1,1943.8,2.4910909]
[1771533221519,0.0011,1944.1,1943.6,3.77731204]
[1771533222015,0.0011,1944.1,1943.7,2.4910909]
[1771533222719,0.0011,1944.1,1943.8,2.4910909]
[1771533223113,0.0011,1944.3,1943.9,2.4910909]
[1771533223620,1.28554532,1944.7,1943.8,2.4910909]
[1771533224207,2.46830702,1944.9,1943.8,2.4910909]
[1771533224208,3.75375215,1944.9,1943.8,2.4910909]
[1771533224818,2.46830702,1944.8,1944.0,2.4910909]
[1771533226419,2.46830702,1944.8,1943.7,3.77724806]
[1771533227004,2.46830702,1944.8,1943.5,5.14630638]
[1771533227005,2.46830702,1944.6,1943.8,2.4910909]
[1771533228094,2.46830702,1944.6,1943.6,2.4910909]
[1771533229114,2.46830702,1944.4,1943.7,3.77729761]
[1771533230941,3.75392703,1944.6,1943.8,2.4910909]
[1771533231128,3.75392703,1944.6,1944.0,2.4910909]
[1771533231427,0.0011,1944.3,1944.0,2.4910909]
[1771533233249,2.46940702,1944.3,1943.8,2.4910909]
[1771533233443,0.0011,1944.3,1943.8,2.4910909]
[1771533235041,2.46830702,1944.1,1943.7,0.928]
[1771533235735,1.28587593,1944.2,1943.7,2.21419212]
[1771533237248,1.28587593,1944.2,1943.7,0.928]
[1771533237736,3.75418295,1944.2,1943.7,0.001]
[1771533238707,2.46830702,1944.1,1943.7,0.001]
[1771533239410,3.75521682,1944.3,1943.7,2.4920909]
[1771533240017,2.46940702,1944.3,1943.7,2.4920909]
[1771533240221,1.28691222,1944.3,1943.7,2.4920909]
[1771533240736,0.0011,1944.3,1943.7,2.4920909]
[1771533241036,1.28691284,1944.3,1943.7,2.4920909]
[1771533241237,0.0011,1944.3,1943.7,2.4920909]
[1771533241938,2.51613669,1944.3,1943.7,0.001]
[1771533244021,2.51503669,1944.1,1943.7,0.001]
[1771533244807,2.51503669,1944.1,1943.5,0.001]
[1771533245012,2.51503669,1944.1,1943.8,0.001]
[1771533245212,2.51503669,1944.1,1943.5,0.001]
[1771533246020,2.51503669,1943.9,1943.5,0.001]
[1771533246539,3.80102022,1944.1,1943.5,2.43075286]
[1771533248834,2.36583671,1944.0,1943.5,2.43075286]
[1771533249139,2.36583671,1944.0,1943.5,3.71708656]
[1771533249449,0.0011,1944.3,1943.6,2.40900391]
[1771533249646,2.36693671,1944.3,1943.6,2.40900391]
[1771533251141,2.36583671,1944.1,1943.6,2.40900391]
[1771533254451,1.28600823,1944.0,1943.6,2.40900391]
[1771533256720,3.65182855,1944.1,1943.6,3.69527327]
[1771533257520,3.65182855,1944.1,1943.7,0.001]
[1771533257818,0.0011,1944.0,1943.7,0.001]
[1771533260547,2.36693671,1944.0,1943.7,0.001]
[1771533262454,1.28607438,1943.9,1943.7,0.001]
[1771533262641,2.36583671,1943.8,1943.7,0.001]
[1771533263151,1.28607438,1943.9,1943.7,0.001]
[1771533263351,2.36693671,1944.0,1943.7,0.001]
[1771533263650,0.0011,1944.0,1943.7,2.41000391]
[1771533264658,2.36693671,1944.0,1943.7,0.001]
[1771533267231,1.28607438,1943.9,1943.7,0.001]
[1771533267942,3.65191109,1943.9,1943.7,0.001]
[1771533268958,1.28607438,1943.9,1943.7,0.001]
[1771533269169,1.28607438,1943.9,1943.7,2.41000391]
[1771533269666,5.14516991,1944.0,1943.7,2.41000391]
[1771533269872,7.51100662,1944.0,1943.7,0.001]
[1771533270866,2.36583671,1943.9,1943.7,0.001]
[1771533271339,7.51100662,1944.0,1943.8,0.001]
[1771533271740,0.0011,1943.9,1943.8,0.001]
[1771533276169,2.36693671,1943.9,1943.5,0.001]
[1771533276402,2.36583671,1943.4,1943.0,0.00253886]
[1771533276851,2.48101082,1943.6,1943.1,2.32194844]
[1771533277385,2.49676647,1943.8,1943.1,2.32194844]
[1771533277386,2.48101082,1943.8,1943.1,2.32194844]
[1771533279174,2.48101082,1943.6,1943.1,3.60854365]
[1771533279369,2.48101082,1943.6,1943.2,2.32194844]
[1771533283782,2.48101082,1943.5,1943.0,2.3244873]
[1771533283962,2.48101082,1943.4,1943.0,0.00253886]
[1771533284982,2.48101082,1943.4,1943.0,2.3244873]
[1771533285479,2.48101082,1943.4,1943.3,0.001]
[1771533285649,2.48101082,1943.4,1943.0,2.3244873]
[1771533285855,3.76746146,1943.4,1943.2,0.001]
[1771533290380,2.48101082,1943.4,1943.2,0.001]
[1771533290584,3.76735923,1943.5,1943.2,0.001]
[1771533290786,1.28629804,1943.6,1943.2,2.32294844]
[1771533290999,2.48101082,1943.6,1943.2,2.32294844]
[1771533291692,2.48101082,1943.6,1943.2,0.001]
[1771533292188,2.48211082,1943.8,1943.3,2.32194844]
[1771533292489,0.0011,1943.8,1943.3,2.32194844]
[1771533295784,0.0011,1943.8,1943.5,2.32194844]
[1771533297881,0.0011,1943.7,1943.5,2.32194844]
[1771533301292,0.0011,1943.7,1943.5,3.6082837]
[1771533301482,0.0011,1943.7,1943.5,2.32194844]
[1771533301661,0.0011,1943.7,1943.5,3.6082797]
[1771533302498,2.49629091,1944.4,1943.5,1.28633126]
[1771533302797,1.28574656,1944.4,1943.7,2.4129493]
[1771533302963,3.78202245,1944.5,1943.9,2.4129493]
[1771533303167,2.49629091,1944.4,1943.9,2.4129493]
[1771533303572,2.49739091,1944.3,1943.9,2.4129493]
[1771533303794,2.49739091,1944.3,1943.7,5.14456219]
[1771533303795,2.49629091,1944.2,1943.7,3.69910486]
[1771533304190,2.49629091,1944.2,1943.8,2.4129493]
[1771533304370,0.0011,1944.3,1943.8,2.4129493]
[1771533304771,2.49739091,1944.3,1943.8,2.4129493]
[1771533304976,3.78321809,1944.3,1943.8,3.69906561]
[1771533306782,2.49739091,1944.3,1943.9,2.51002329]
[1771533306979,2.63498208,1944.6,1943.9,2.51002329]
[1771533309391,2.63498208,1944.6,1944.1,2.51002329]
[1771533309609,5.34430229,1944.9,1944.1,2.51002329]
[1771533309610,2.63498208,1944.8,1944.1,2.51002329]
[1771533310409,0.0011,1944.3,1944.1,2.51002329]
[1771533310579,2.63498208,1944.8,1944.1,2.51002329]
[1771533310779,0.0011,1944.5,1944.1,2.51002329]
[1771533311792,0.0011,1944.5,1944.3,2.51002329]
[1771533312775,0.00153886,1945.0,1944.3,2.51002329]
[1771533312977,2.63652094,1945.0,1944.3,2.51002329]
[1771533314083,2.63652094,1945.0,1944.5,2.51002329]
[1771533314290,2.63498208,1944.9,1944.3,3.79578974]
[1771533314513,2.63498208,1944.8,1944.1,3.79591613]
[1771533315303,2.63498208,1944.8,1944.2,2.51002329]
[1771533316206,3.9205274,1944.7,1944.2,2.51002329]
[1771533316985,2.63498208,1944.6,1944.2,3.7958898]
[1771533317608,2.63498208,1944.6,1944.0,3.79601703]
[1771533317808,2.63498208,1944.6,1943.9,1.28706693]
[1771533318014,2.63498208,1944.4,1943.9,3.79709022]
[1771533318321,2.63498208,1944.4,1943.9,0.001]
[1771533319000,2.63498208,1944.4,1943.9,3.79709459]
[1771533319205,2.63498208,1944.4,1944.0,2.51002329]
[1771533321716,3.92075309,1944.4,1944.0,2.51002329]
[1771533322115,0.0011,1944.3,1944.0,2.51002329]
[1771533325320,0.0011,1944.3,1944.1,2.51002329]
[1771533325731,0.0011,1944.3,1944.0,1.28600633]
[1771533325732,0.0011,1944.6,1944.2,2.51002329]
[1771533327822,0.0011,1944.6,1944.2,3.79589692]
[1771533328527,0.0011,1944.6,1944.3,2.51002329]
[1771533329731,2.63608208,1944.6,1944.0,2.51002329]
[1771533331530,3.92065963,1944.5,1944.0,3.79598508]
[1771533331738,2.63498208,1944.9,1944.4,2.51002329]
[1771533333328,2.63498208,1944.8,1944.1,2.51002329]
[1771533334105,2.63498208,1944.6,1944.1,3.79592326]
[1771533334322,2.63498208,1944.6,1944.2,2.51002329]
[1771533334508,0.0011,1944.5,1944.2,2.51002329]
[1771533336106,2.63608208,1944.5,1944.1,0.001]
[1771533336708,2.63608208,1944.5,1944.1,3.7969642]
[1771533337120,0.0011,1944.5,1944.2,2.47245634]
[1771533338914,0.0011,1944.5,1944.2,3.75831592]
[1771533340264,1.28551229,1944.8,1944.3,2.47245634]
[1771533340420,2.40427291,1944.7,1944.3,2.47245634]
[1771533341748,2.40427291,1944.7,1944.2,1.28585958]
[1771533342242,2.40427291,1944.7,1944.1,3.75936027]
[1771533342453,1.28561143,1944.6,1944.2,2.47245634]
[1771533342642,3.68988434,1944.6,1944.2,2.47245634]
[1771533342847,2.40427291,1944.6,1944.2,2.47245634]
[1771533345056,2.40427291,1944.6,1944.2,3.75832342]
[1771533346083,2.40427291,1944.6,1944.2,2.47245634]
[1771533346360,2.40427291,1944.6,1944.2,3.75832457]
[1771533346660,2.40427291,1944.6,1944.3,2.47245634]
[1771533348363,3.68991175,1944.6,1944.3,2.47245634]
[1771533348536,2.40427291,1944.6,1944.3,2.47245634]
[1771533349262,2.40427291,1944.6,1944.3,2.47345634]
[1771533349567,0.0011,1944.5,1944.3,2.47345634]
[1771533351262,0.0011,1944.5,1944.3,0.001]
[1771533351263,2.40537291,1944.5,1944.3,0.001]
[1771533352042,3.6910519,1944.5,1944.3,0.001]
[1771533352771,3.69105148,1944.5,1944.3,0.001]
[1771533353560,2.40537291,1944.5,1944.3,0.001]
[1771533355452,2.40427291,1944.4,1944.3,0.001]
[1771533358645,2.40427291,1944.3,1944.0,0.001]
[1771533358845,6.62819685,1944.4,1943.6,0.928]
[1771533358846,2.40427291,1944.1,1943.6,0.928]
[1771533359055,2.40427291,1943.9,1943.6,0.928]
[1771533361349,3.69034729,1943.9,1943.6,0.928]
[1771533362051,2.33975761,1943.8,1943.3,1.28744653]
[1771533362746,2.33975761,1943.8,1943.3,0.001]
[1771533362946,2.33975761,1943.8,1943.4,2.37984191]
[1771533363157,2.33975761,1943.8,1943.3,1.28746985]
[1771533363477,2.33975761,1943.7,1943.3,0.001]
[1771533364751,2.33975761,1943.7,1943.6,0.001]
[1771533365578,2.33975761,1943.6,1943.3,0.001]
[1771533366251,2.33975761,1943.6,1943.2,0.001]
[1771533367478,2.30324607,1943.4,1943.2,0.001]
[1771533368350,2.30324607,1943.3,1943.0,0.00153886]
[1771533368598,2.30324607,1943.3,1942.9,0.90368413]
[1771533368879,2.30324607,1943.3,1942.7,0.001]
[1771533369247,2.30324607,1943.1,1942.7,0.001]
[1771533369673,2.30324607,1942.9,1942.7,0.001]
[1771533370578,5.1446182,1943.8,1942.8,2.48879502]
[1771533370579,2.30324607,1943.5,1942.8,2.48879502]
[1771533370876,3.58949591,1943.7,1942.8,2.48879502]
[1771533371045,3.58941,1943.8,1943.0,2.48879502]
[1771533371251,2.30324607,1943.8,1943.0,2.48879502]
[1771533371678,2.30324607,1943.6,1943.1,1.28660388]
[1771533373181,2.30324607,1943.6,1943.2,2.48879502]
[1771533373604,2.30324607,1943.8,1943.2,2.48879502]
[1771533373892,2.30324607,1943.8,1943.4,2.48879502]
[1771533374191,4.51783956,1944.0,1943.4,2.48879502]
[1771533374367,2.30324607,1943.9,1943.4,2.48879502]
[1771533376108,2.30324607,1943.4,1942.9,3.77549581]
[1771533376290,2.30324607,1943.4,1942.9,2.48879502]
[1771533376787,1.286137,1943.9,1943.2,2.48979502]
[1771533376788,2.30324607,1943.8,1943.2,2.48979502]
[1771533377085,0.0011,1943.6,1943.2,2.48979502]
[1771533378284,0.0011,1943.6,1943.3,3.77526648]
[1771533379084,0.0011,1943.6,1943.3,2.48879502]
[1771533379259,2.30434607,1943.6,1943.2,0.001]
[1771533379455,2.30434607,1943.6,1943.2,1.28753015]
[1771533379672,0.0011,1943.6,1943.2,3.77632517]
[1771533388405,2.30434607,1943.6,1943.2,3.77632517]
[1771533388609,2.30324607,1943.5,1943.2,0.001]
[1771533389390,2.30434607,1943.5,1943.2,0.001]
[1771533390209,2.30434607,1943.6,1943.2,2.48979502]
[1771533391127,2.30434607,1943.6,1943.3,1.28647146]
[1771533392588,2.30434607,1943.6,1943.2,3.77633268]
[1771533394719,2.30434607,1943.6,1943.3,2.48879502]
[1771533398630,3.59062833,1943.6,1943.3,2.48879502]
[1771533398995,2.33268576,1943.5,1943.2,0.001]
[1771533400016,3.61909102,1943.4,1943.2,0.001]
[1771533402818,3.61909102,1943.4,1943.3,0.001]
[1771533403688,2.33268576,1943.4,1943.3,0.001]
[1771533403894,0.0011,1943.5,1943.3,2.48665209]
[1771533404118,0.0011,1943.5,1943.2,2.48665209]
[1771533404429,2.33378576,1943.5,1943.2,0.001]
[1771533404630,2.33378576,1943.5,1943.2,1.28752821]
[1771533404830,2.33378576,1943.5,1943.2,3.7731803]
[1771533405138,2.33378576,1943.5,1943.2,2.48665209]
[1771533405496,2.33378576,1943.5,1943.2,0.001]
[1771533406717,3.62013978,1943.5,1943.2,0.001]
[1771533406894,2.33268576,1943.4,1943.2,0.001]
[1771533408827,1.28647146,1943.3,1943.2,0.001]
[1771533411720,3.61914758,1943.4,1943.2,0.001]
[1771533412225,2.33268576,1943.3,1943.2,0.001]
[1771533412431,2.33268576,1943.3,1943.1,0.001]
[1771533413996,3.61916211,1943.3,1943.1,0.001]
[1771533415412,3.61916211,1943.3,1943.2,0.001]
[1771533415910,2.33378576,1943.3,1943.2,0.001]
[1771533416428,3.62025722,1943.3,1943.2,0.001]
[1771533416728,2.33268576,1943.4,1943.2,0.001]
[1771533417101,3.61910097,1943.4,1943.2,0.001]
[1771533417511,2.33268576,1943.3,1943.2,0.001]
[1771533420135,3.61915722,1943.3,1943.2,0.001]
[1771533420434,2.33268576,1943.2,1943.0,0.001]
[1771533420817,2.33268576,1943.0,1942.7,0.001]
[1771533422136,3.5902565,1942.9,1942.7,0.001]
[1771533422338,2.30352018,1942.8,1942.7,0.001]
[1771533427545,3.59032273,1942.8,1942.7,0.001]
[1771533428244,3.6244088,1943.1,1942.7,2.39868091]
[1771533428540,2.33779804,1943.0,1942.7,2.39868091]
[1771533428717,2.33779804,1943.0,1942.7,0.001]
[1771533429716,2.33779804,1942.9,1942.7,0.001]
[1771533432045,2.33779804,1942.9,1942.5,0.001]
[1771533432046,2.33779804,1942.7,1942.3,0.001]
[1771533432426,2.33779804,1942.5,1942.2,0.001]
[1771533433836,2.33779804,1942.3,1942.2,0.001]
[1771533434146,2.33779804,1942.3,1942.1,0.001]
[1771533435230,2.33779804,1942.3,1942.0,0.00253886]
[1771533435548,6.63347507,1942.4,1941.8,0.001]
[1771533435549,2.33779804,1942.1,1941.8,0.001]
[1771533435750,2.33779804,1942.1,1941.4,3.33216196]
[1771533435926,2.33779804,1941.9,1941.4,3.33216196]
[1771533436553,2.33779804,1941.9,1941.5,2.39768091]
[1771533437854,2.33779804,1942.3,1941.7,2.39768091]
[1771533438049,5.34640753,1942.6,1941.9,2.39768091]
[1771533438050,2.33779804,1942.5,1941.9,2.39768091]
[1771533438257,1.28698825,1942.6,1941.9,2.39768091]
[1771533438760,2.33779804,1942.5,1941.9,2.39768091]
[1771533439967,3.62480815,1942.5,1942.0,1.28733264]
[1771533440168,3.62480815,1942.5,1942.0,3.68501355]
[1771533444754,3.62480815,1942.5,1942.0,2.39768091]
[1771533444963,2.33779804,1942.4,1942.0,2.39768091]
[1771533445627,2.33779804,1942.3,1941.9,3.6850782]
[1771533445848,2.33779804,1942.3,1941.9,2.39768091]
[1771533446437,2.33779804,1942.3,1941.9,3.68507525]
[1771533447828,2.33779804,1942.5,1942.0,2.39768091]
[1771533448033,3.62469742,1942.7,1942.0,2.39768091]
[1771533449061,2.33779804,1942.6,1942.0,2.39768091]
[1771533450326,1.28700128,1942.5,1942.1,2.39768091]
[1771533450966,3.62475858,1942.6,1942.1,2.39768091]
[1771533451732,2.33779804,1942.6,1942.1,2.39768091]
[1771533452353,3.62473645,1942.6,1942.1,2.39768091]
[1771533453166,3.62473645,1942.6,1942.1,3.68494388]
[1771533453330,3.62473645,1942.6,1942.2,2.39768091]
[1771533453536,0.0011,1942.5,1942.2,2.39768091]
[1771533456560,0.0011,1942.5,1942.3,2.39768091]
[1771533458270,2.30439101,1942.5,1942.2,2.54328716]
[1771533458679,2.30439101,1942.5,1942.0,2.54328716]
[1771533463984,2.30329101,1942.3,1941.9,0.001]
[1771533464680,2.30329101,1942.3,1941.9,2.54428716]
[1771533465086,2.30329101,1942.3,1941.9,3.83167622]
[1771533465666,2.30329101,1942.3,1941.9,2.54428716]
[1771533466562,3.59042547,1942.3,1941.9,2.54428716]
[1771533466756,2.30329101,1942.2,1941.9,2.54428716]
[1771533468280,2.30329101,1942.2,1941.9,3.83167718]
[1771533468869,2.30329101,1942.3,1942.0,2.54328716]
[1771533470192,2.30329101,1942.3,1941.9,2.54428716]
[1771533471590,2.30329101,1942.3,1941.9,3.83168599]
[1771533471760,3.59042771,1942.3,1941.9,2.54428716]
[1771533472089,2.30329101,1942.3,1941.9,2.54428716]
[1771533472291,0.0011,1942.4,1942.0,2.54328716]
[1771533473761,2.30439101,1942.4,1942.1,2.54328716]
[1771533476891,3.59147606,1942.4,1942.1,2.54328716]
[1771533479398,2.30439101,1942.3,1942.0,2.54328716]
[1771533479605,2.30439101,1942.3,1941.9,0.001]
[1771533481367,3.73900879,1942.2,1941.9,0.001]
[1771533481768,3.73900879,1942.2,1941.9,2.45293857]